bitfinex/quotes_SOLUSD_20250402
["timestamp","ask_amount","ask_price","bid_price","bid_amount"]
[1743609477364,7.6956,129.95,129.88,12.68]
[1743609477676,18.79181043,129.94,129.88,12.68]
[1743609477869,51.53855888,129.99,129.88,12.68]
[1743609477870,7.6923,130.0,129.91,26.0]
[1743609478078,0.14216157,130.03,129.92,26.0]
[1743609478584,0.03,130.04,129.95,7.695]
[1743609478759,0.03,130.04,129.99,26.0]
[1743609479170,0.03,130.04,129.96,300.6]
[1743609479171,51.53855888,130.03,129.96,300.6]
[1743609479379,27.08706157,130.04,129.96,300.6]
[1743609479552,70.47253088,130.03,129.96,300.6]
[1743609479751,0.28432314,130.0,129.96,300.6]
[1743609480153,51.82288202,130.0,129.96,300.6]
[1743609480572,18.79181043,129.98,129.96,300.6]
[1743609480768,0.28432314,130.0,129.96,300.6]
[1743609480976,0.14216157,129.99,129.96,300.6]
[1743609481377,18.79181043,130.0,129.96,300.6]
[1743609482691,26.48411043,130.0,129.96,300.6]
[1743609482986,0.28432314,129.99,129.96,300.6]
[1743609483166,18.79181043,129.98,129.96,288.0]
[1743609483366,0.14216157,129.98,129.96,288.0]
[1743609483805,0.03,130.01,129.96,288.0]
[1743609484203,0.03,130.01,129.96,295.6943]
[1743609484493,0.03,130.01,129.99,26.0]
[1743609484893,0.03,130.01,129.99,33.6928]
[1743609485273,0.03,130.01,129.97,7.694]
[1743609485479,0.03,130.01,129.99,26.0]
[1743609486776,0.03,130.01,129.99,33.6927]
[1743609486990,0.03,130.01,129.99,26.0]
[1743609487196,0.03,130.01,130.0,12.42]
[1743609487799,0.03,130.01,130.0,38.42]
[1743609488189,0.03,130.01,129.99,26.0]
[1743609488382,0.03,130.01,130.0,12.4]
[1743609489028,7.7217,130.01,130.0,12.4]
[1743609489236,26.79783357,130.01,130.0,12.4]
[1743609489413,26.79783357,130.01,129.96,288.0]
[1743609489616,18.79181043,130.0,129.97,12.34]
[1743609490298,51.53855888,129.99,129.97,12.34]
[1743609490608,18.79181043,129.98,129.97,12.34]
[1743609490783,0.14216157,129.98,129.96,288.0]
[1743609490986,26.48581043,129.97,129.96,288.0]
[1743609491499,26.77013357,129.97,129.96,288.0]
[1743609491699,78.30869245,129.97,129.96,288.0]
[1743609491897,26.48581043,129.97,129.96,288.0]
[1743609492410,7.6937,129.98,129.96,288.0]
[1743609492622,7.6923,130.0,129.96,288.0]
[1743609493688,0.14216157,129.96,129.86,0.5]
[1743609493890,51.68072045,129.95,129.85,7.7011]
[1743609494092,18.64964886,129.94,129.86,12.26]
[1743609494291,0.14216157,129.95,129.89,26.0]
[1743609494494,18.64964886,129.99,129.89,26.0]
[1743609494694,18.64964886,129.99,129.91,26.0]
[1743609494899,7.7218,130.01,129.92,7.697]
[1743609495217,0.03,130.01,129.92,7.697]
[1743609495406,0.03,130.01,129.96,26.0]
[1743609495715,0.03,130.01,129.97,287.88]
[1743609497007,0.03,130.01,129.98,7.6934]
[1743609497615,0.03,130.01,129.99,12.32]
[1743609499998,0.03,130.01,129.99,20.0127]
[1743609500203,0.03,130.01,129.97,287.88]
[1743609500417,0.03,130.01,129.98,12.22]
[1743609500592,0.03,130.01,130.0,26.0]
[1743609500793,0.03,130.04,130.01,26.0]
[1743609500993,0.03,130.04,130.02,26.0]
[1743609501237,0.03,130.13,130.06,26.0]
[1743609501399,0.03,130.13,130.07,12.22]
[1743609501601,7.7148,130.13,130.04,19.07613357]
[1743609501802,0.03,130.13,130.11,26.0]
[1743609502696,0.03,130.13,130.12,287.76]
[1743609503919,0.03,130.13,130.12,295.4452]
[1743609504100,0.03,130.13,130.12,287.76]
[1743609505118,0.03,130.13,130.11,33.6856]
[1743609506126,0.03,130.13,130.12,38.1]
[1743609506631,0.03,130.15,130.12,77.17613357]
[1743609506939,0.03,130.15,130.12,89.28033357]
[1743609507321,0.03,130.15,130.14,18.64964886]
[1743609507631,0.03,130.15,130.14,26.0]
[1743609507799,0.03,130.15,130.14,38.06]
[1743609509226,0.03,130.15,130.14,64.82013357]
[1743609510422,0.03,130.15,130.14,38.06]
[1743609511724,0.03,130.15,130.14,12.06]
[1743609512234,0.03,130.15,130.14,38.06]
[1743609512709,0.03,130.15,130.14,325.54]
[1743609515816,0.03,130.15,130.14,38.06]
[1743609516406,0.03,130.15,130.14,12.06]
[1743609516807,0.03,130.15,130.14,11.94]
[1743609517307,0.17216157,130.15,130.04,20.0]
[1743609517514,18.933972,130.14,130.05,11.94]
[1743609517719,18.933972,130.12,130.05,11.94]
[1743609518035,51.53855888,130.09,129.99,12.1541]
[1743609518247,26.0,130.1,130.0,11.94]
[1743609518737,19.07613357,130.11,130.03,26.0]
[1743609518939,26.0,130.11,130.01,0.14216157]
[1743609519157,26.0,130.11,130.01,0.42648471]
[1743609519543,26.0,130.11,130.02,7.6911]
[1743609519746,59.39412045,130.15,130.05,26.0]
[1743609520047,0.03,130.15,130.06,26.0]
[1743609520250,0.03,130.15,130.07,11.94]
[1743609520753,26.78953357,130.15,130.07,11.94]
[1743609521338,0.03,130.15,130.07,11.94]
[1743609521660,0.03,130.15,130.08,7.6875]
[1743609522876,0.03,130.15,130.09,287.5]
[1743609523541,0.03,130.15,130.1,7.6863]
[1743609524153,0.03,130.15,130.09,287.5]
[1743609524664,0.03,130.15,130.12,26.0]
[1743609525441,0.03,130.15,130.14,26.0]
[1743609525653,0.03,130.15,130.14,11.94]
[1743609526166,18.82181043,130.15,130.14,11.94]
[1743609526345,70.64469245,130.15,130.14,11.94]
[1743609526545,19.07613357,130.14,130.09,299.503]
[1743609526762,19.07613357,130.11,130.09,299.503]
[1743609526947,51.53855888,130.1,130.09,299.503]
[1743609527144,70.61469245,130.1,130.09,287.563]
[1743609527663,26.76243357,130.1,130.09,287.563]
[1743609527841,78.30099245,130.1,130.09,287.563]
[1743609528684,19.07613357,130.09,130.05,299.42]
[1743609528879,70.61469245,130.09,130.05,299.42]
[1743609529072,70.47253088,130.09,130.05,299.42]
[1743609529265,18.933972,130.09,130.05,299.42]
[1743609529577,7.6875,130.08,130.05,299.42]
[1743609529780,5.1681,130.14,130.05,299.42]
[1743609529954,18.933972,130.12,130.05,307.109]
[1743609530287,12.8523,130.14,130.05,307.109]
[1743609530463,64.39085888,130.14,130.05,307.109]
[1743609530797,64.39085888,130.14,130.05,326.3323]
[1743609530959,51.53855888,130.13,130.05,307.109]
[1743609531162,19.07613357,130.12,130.05,299.42]
[1743609531363,19.07613357,130.12,130.05,307.1093]
[1743609531581,0.03,130.15,130.05,326.3326]
[1743609531876,0.03,130.15,130.08,26.0]
[1743609532386,0.03,130.15,130.09,26.0]
[1743609532550,0.03,130.15,130.13,26.0]
[1743609532754,0.03,130.15,130.14,11.94]
[1743609534787,0.03,130.15,130.14,19.624]
[1743609535164,7.6803,130.21,130.14,11.94]
[1743609535485,26.35914886,130.22,130.14,19.6236]
[1743609535687,0.28432314,130.21,130.14,11.94]
[1743609535884,19.07613357,130.17,130.14,11.94]
[1743609536125,19.07613357,130.21,130.14,11.94]
[1743609536389,70.61469245,130.21,130.14,11.94]
[1743609536565,0.14216157,130.18,130.14,11.94]
[1743609536756,0.14216157,130.18,130.07,26.9085]
[1743609536757,18.933972,130.17,130.07,26.9085]
[1743609536953,18.933972,130.17,130.08,11.94]
[1743609536954,18.64964886,130.17,130.08,11.94]
[1743609537173,0.28432314,130.17,130.08,11.94]
[1743609537456,18.64964886,130.18,130.08,30.58964886]
[1743609537793,18.67964886,130.22,130.14,26.0]
[1743609537970,0.03,130.15,130.14,26.0]
[1743609538301,0.03,130.15,130.14,37.94]
[1743609538586,0.03,130.15,130.1,7.6863]
[1743609538790,0.03,130.15,130.09,0.063]
[1743609538992,18.963972,130.15,130.09,0.063]
[1743609539159,0.03,130.15,130.1,11.94]
[1743609539759,0.03,130.15,130.11,7.6858]
[1743609540892,0.03,130.15,130.14,26.0]
[1743609541671,0.03,130.22,130.18,26.0]
[1743609541873,0.03,130.22,130.19,11.94]
[1743609542427,51.71072045,130.22,130.14,7.6838]
[1743609542577,18.79181043,130.21,130.18,11.94]
[1743609542793,0.03,130.22,130.19,287.5]
[1743609543301,0.17216157,130.22,130.19,287.5]
[1743609543510,0.03,130.22,130.19,287.5]
[1743609543803,51.82288202,130.21,130.19,287.5]
[1743609543986,0.31432314,130.22,130.19,287.5]
[1743609544307,26.14216157,130.2,130.19,287.5]
[1743609544489,96.61469245,130.2,130.19,287.5]
[1743609544789,18.933972,130.21,130.19,287.5]
[1743609545193,0.14216157,130.2,130.19,287.5]
[1743609545877,7.82256157,130.2,130.19,287.5]
[1743609546075,59.36112045,130.2,130.19,287.5]
[1743609546398,59.36072045,130.21,130.19,287.5]
[1743609546611,7.68,130.21,130.19,287.5]
[1743609547076,0.03,130.22,130.19,287.5]
[1743609547280,26.35904886,130.22,130.19,287.5]
[1743609547728,0.03,130.22,130.2,11.92]
[1743609548983,0.03,130.22,130.2,19.6002]
[1743609549214,0.03,130.22,130.2,11.92]
[1743609549617,0.03,130.22,130.2,19.6004]
[1743609552807,0.03,130.22,130.21,306.47613357]
[1743609553128,0.063,130.28,130.24,0.14216157]
[1743609553315,0.063,130.29,130.27,26.0]
[1743609553522,0.063,130.31,130.28,11.92]
[1743609553896,0.063,130.31,130.29,7.6751]
[1743609555530,0.063,130.31,130.3,26.0]
[1743609556026,0.063,130.31,130.3,11.92]
[1743609557335,0.34732314,130.31,130.3,11.92]
[1743609558009,0.063,130.31,130.3,11.92]
[1743609558222,0.48948471,130.31,130.3,11.92]
[1743609558425,70.53528763,130.31,130.3,11.92]
[1743609558650,0.42648471,130.22,130.09,20.063]
[1743609558823,0.42648471,130.2,130.1,19.6063]
[1743609559024,0.42648471,130.18,130.1,11.92]
[1743609559251,51.82263877,130.18,130.09,0.063]
[1743609559466,18.933972,130.12,130.09,0.063]
[1743609559627,0.14216157,130.15,130.1,11.92]
[1743609559825,0.14216157,130.18,130.1,11.92]
[1743609560157,18.64964886,130.19,130.11,11.92]
[1743609560476,18.64964886,130.16,130.11,11.92]
[1743609560761,51.6804772,130.15,130.09,0.063]
[1743609560936,0.28432314,130.16,130.12,11.92]
[1743609561139,0.28432314,130.18,130.12,11.92]
[1743609561633,0.14216157,130.19,130.12,11.92]
[1743609561634,0.28432314,130.19,130.12,11.92]
[1743609562156,0.28432314,130.19,130.12,19.6049]
[1743609562486,51.82263877,130.19,130.12,11.92]
[1743609562617,0.14216157,130.17,130.12,11.92]
[1743609562823,70.04580292,130.18,130.13,287.3]
[1743609563139,70.33012606,130.18,130.14,11.92]
[1743609563339,51.53831563,130.15,130.13,287.3]
[1743609563654,18.933972,130.14,130.13,287.3]
[1743609563859,70.47228763,130.14,130.13,287.3]
[1743609564038,26.0,130.11,130.09,0.063]
[1743609564273,78.15858763,130.1,130.09,0.063]
[1743609564580,18.64964886,130.12,130.09,0.063]
[1743609564785,7.6839,130.15,130.07,6.7509]
[1743609564786,18.79181043,130.15,130.07,6.7509]
[1743609564986,18.933972,130.16,130.08,18.0344]
[1743609565157,18.64964886,130.16,130.11,26.0]
[1743609565954,0.28432314,130.15,130.12,11.92]
[1743609566162,70.04580292,130.17,130.12,11.92]
[1743609566376,0.28432314,130.16,130.12,11.92]
[1743609566597,18.64964886,130.17,130.12,19.6051]
[1743609566750,70.04580292,130.17,130.12,11.92]
[1743609566951,18.79181043,130.18,130.12,11.92]
[1743609567181,0.28432314,130.17,130.12,11.92]
[1743609567354,4.7638,130.21,130.15,26.0]
[1743609567567,4.7638,130.21,130.15,11.92]
[1743609567768,18.64964886,130.2,130.15,11.92]
[1743609567976,0.14216157,130.19,130.15,11.92]
[1743609568156,0.28432314,130.15,130.08,18.0344]
[1743609568375,19.07613357,130.13,130.12,11.92]
[1743609568681,51.53831563,130.14,130.06,287.3]
[1743609568682,4.9902,130.14,130.06,287.3]
[1743609568883,19.07613357,130.15,130.07,28.7845]
[1743609569089,51.39615406,130.12,130.07,4.714]
[1743609569250,51.39615406,130.12,130.06,287.3]
[1743609569251,18.933972,130.12,130.08,11.92]
[1743609569775,19.07613357,130.16,130.08,11.92]
[1743609569975,70.33012606,130.16,130.08,11.92]
[1743609570182,18.64964886,130.16,130.09,7.6869]
[1743609570480,0.14216157,130.19,130.12,26.0]
[1743609570984,18.64964886,130.2,130.12,26.0]
[1743609571469,12.40066157,130.21,130.12,26.0]
[1743609571804,18.933972,130.2,130.13,7.6846]
[1743609572203,0.14216157,130.19,130.13,7.6846]
[1743609572501,0.28432314,130.17,130.14,11.92]
[1743609572701,0.42648471,130.17,130.14,11.92]
[1743609572873,51.6804772,130.19,130.14,11.92]
[1743609573075,18.64964886,130.18,130.14,11.92]
[1743609573470,51.39615406,130.18,130.14,11.92]
[1743609573686,18.933972,130.17,130.14,11.92]
[1743609573876,18.933972,130.17,130.14,299.38]
[1743609573877,18.64964886,130.17,130.14,299.38]
[1743609574099,0.42648471,130.18,130.14,307.064]
[1743609574290,0.42648471,130.18,130.14,299.38]
[1743609575129,70.04580292,130.19,130.14,299.38]
[1743609575311,18.64964886,130.19,130.14,299.38]
[1743609575676,51.53831563,130.2,130.14,299.38]
[1743609576013,0.14216157,130.19,130.14,299.38]
[1743609576583,0.14216157,130.19,130.14,307.0638]
[1743609577113,18.933972,130.15,130.14,287.46]
[1743609577318,19.07613357,130.15,130.14,287.46]
[1743609577607,0.28432314,130.15,130.14,287.46]
[1743609577810,7.6806,130.2,130.14,287.46]
[1743609578191,0.28432314,130.19,130.14,295.1438]
[1743609578516,0.42648471,130.19,130.14,287.46]
[1743609578694,8.10788471,130.19,130.14,287.46]
[1743609578890,0.42648471,130.19,130.14,287.46]
[1743609579091,0.28432314,130.17,130.14,287.46]
[1743609579731,51.82263877,130.17,130.14,287.46]
[1743609579895,0.28432314,130.2,130.14,287.46]
[1743609580094,18.64964886,130.21,130.14,295.1439]
[1743609580314,0.14216157,130.2,130.14,295.1439]
[1743609580598,18.64964886,130.21,130.17,26.0]
[1743609580821,0.14216157,130.24,130.17,31.0047]
[1743609581206,51.39615406,130.26,130.17,31.0047]
[1743609581410,18.933972,130.24,130.17,31.0047]
[1743609581720,18.64964886,130.24,130.17,31.0047]
[1743609581927,18.64964886,130.25,130.17,31.0047]
[1743609582631,18.64964886,130.25,130.18,7.6816]
[1743609583019,0.14216157,130.26,130.18,26.8857]
[1743609583330,0.28432314,130.24,130.18,7.6816]
[1743609583623,0.28432314,130.24,130.17,31.0047]
[1743609583624,18.933972,130.24,130.17,38.6867]
[1743609583931,0.28432314,130.24,130.17,38.6867]
[1743609584524,12.5414,130.27,130.17,57.8923]
[1743609584827,24.1508,130.31,130.17,57.8923]
[1743609585042,0.14216157,130.28,130.17,57.8923]
[1743609585328,0.063,130.31,130.22,4.9753]
[1743609585627,19.13913357,130.31,130.23,11.9]
[1743609585826,18.71264886,130.31,130.23,11.9]
[1743609586129,0.03,130.26,130.24,12.4291]
[1743609586311,0.03,130.26,130.25,287.42]
[1743609589633,0.03,130.26,130.23,11.9]
[1743609589634,0.03,130.26,130.24,7.6781]
[1743609590005,0.03,130.26,130.25,4.9753]
[1743609590928,0.03,130.26,130.25,38.6528]
[1743609591802,4.9016,130.35,130.25,76.92273357]
[1743609592002,2.7163011,130.36,130.3,26.0]
[1743609592199,2.7163011,130.36,130.3,37.9]
[1743609592438,18.933972,130.35,130.3,37.9]
[1743609592602,7.6726,130.34,130.3,11.9]
[1743609592805,18.933972,130.33,130.3,299.16]
[1743609593229,26.606772,130.33,130.3,299.16]
[1743609593411,78.00292606,130.33,130.3,299.16]
[1743609593614,2.7163011,130.36,130.3,299.16]
[1743609593806,2.7163011,130.36,130.3,306.8345]
[1743609594556,18.79181043,130.35,130.3,306.8345]
[1743609594723,2.7163011,130.36,130.3,306.8345]
[1743609595139,18.64964886,130.35,130.3,299.16]
[1743609595823,0.14216157,130.34,130.3,287.26]
[1743609596036,51.6804772,130.34,130.3,299.16]
[1743609596246,70.04580292,130.35,130.3,299.16]
[1743609596654,51.39615406,130.35,130.3,299.16]
[1743609596956,2.7163011,130.36,130.3,306.8345]
[1743609597163,2.7163011,130.36,130.3,18.7125]
[1743609597316,2.7163011,130.36,130.3,6.6745]
[1743609597524,2.7163011,130.36,130.28,7.6757]
[1743609597525,18.64964886,130.35,130.28,7.6757]
[1743609597827,18.64964886,130.34,130.3,26.0]
[1743609598261,18.64964886,130.34,130.3,37.9]
[1743609598954,0.28432314,130.33,130.3,37.9]
[1743609599149,0.28432314,130.35,130.3,45.5745]
[1743609599358,2.7163011,130.36,130.3,45.5745]
[1743609599653,26.32124886,130.35,130.3,37.9]
[1743609600472,2.7163011,130.36,130.3,37.9]
[1743609600700,2.7163011,130.36,130.31,4.93176157]
[1743609600977,2.7163011,130.36,130.34,26.0]
[1743609601207,2.7163011,130.36,130.34,26.5]
[1743609601472,0.03,130.38,130.37,26.0]
[1743609601645,0.31432314,130.45,130.38,30.8951]
[1743609601866,0.45648471,130.45,130.42,26.0]
[1743609602073,0.17216157,130.45,130.42,26.0]
[1743609602273,0.03,130.45,130.42,26.0]
[1743609602648,0.03,130.45,130.43,26.0]
[1743609602940,0.03,130.45,130.43,313.1]
[1743609603829,0.17216157,130.45,130.43,313.1]
[1743609604648,0.17216157,130.45,130.43,287.1]
[1743609605348,0.03,130.45,130.43,294.7668]
[1743609605728,0.03,130.45,130.43,7.6668]
[1743609605949,0.03,130.45,130.44,26.0]
[1743609606132,0.02999999,130.45,130.44,26.0]
[1743609606846,0.02999999,130.45,130.44,33.6663]
[1743609607233,13.2985,130.56,130.45,19.07613357]
[1743609607446,12.3585,130.58,130.49,26.0]
[1743609607755,166.61514136,130.6,130.53,26.0]
[1743609607927,166.61514136,130.6,130.57,26.0]
[1743609608346,166.61514136,130.6,130.58,11.88]
[1743609608536,166.61514136,130.6,130.59,0.14216157]
[1743609608743,141.77307031,130.6,130.59,26.73363357]
[1743609609055,7.95347031,130.6,130.59,59.57443357]
[1743609609261,193.10360552,130.62,130.61,65.07613357]
[1743609609475,184.36840552,130.62,130.61,38.02216157]
[1743609609675,116.93090552,130.62,130.61,56.95613357]
[1743609609973,19.1156,130.79,130.61,56.95613357]
[1743609609974,7.6447,130.81,130.71,26.0]
[1743609610156,24.8996,130.82,130.75,26.0]
[1743609610469,17.2554,130.82,130.75,26.0]
[1743609610778,12.5552,130.82,130.77,26.0]
[1743609610957,12.491,130.88,130.78,0.28432314]
[1743609611161,12.491,130.88,130.82,26.0]
[1743609611670,12.491,130.88,130.83,11.86]
[1743609611857,61.61967011,130.87,130.83,11.86]
[1743609612054,53.97837011,130.87,130.84,11.86]
[1743609612383,0.14216157,130.84,130.72,0.14216157]
[1743609612559,2.6863011,130.87,130.75,0.5]
[1743609612766,2.6863011,130.87,130.78,19.07613357]
[1743609612957,2.6863011,130.87,130.84,26.0]
[1743609613158,2.6863011,130.87,130.79,26.0]
[1743609613159,51.29206901,130.86,130.79,26.0]
[1743609613357,51.29206901,130.86,130.82,11.86]
[1743609613655,69.94171787,130.86,130.83,11.86]
[1743609613853,70.08387944,130.84,130.78,11.86]
[1743609614080,18.64964886,130.81,130.78,11.86]
[1743609614255,0.14216157,130.77,130.76,286.72]
[1743609614448,0.14216157,130.75,130.68,11.86]
[1743609614786,51.29206901,130.75,130.71,26.0]
[1743609614959,51.29206901,130.76,130.68,11.86]
[1743609615166,51.29206901,130.72,130.68,11.86]
[1743609615361,51.29206901,130.73,130.68,11.86]
[1743609615560,51.29206901,130.75,130.68,11.86]
[1743609615747,51.29206901,130.76,130.71,26.0]
[1743609615954,51.29206901,130.77,130.71,26.0]
[1743609616366,58.93856901,130.78,130.71,26.0]
[1743609616955,51.29206901,130.77,130.71,26.0]
[1743609617151,51.29206901,130.74,130.68,11.86]
[1743609617556,51.29206901,130.74,130.71,26.0]
[1743609618087,0.42648471,130.74,130.68,11.86]
[1743609618283,0.28432314,130.74,130.66,26.0]
[1743609618465,51.29206901,130.73,130.62,38.6058077]
[1743609618789,51.29206901,130.73,130.7,44.7014705]
[1743609618790,7.6499,130.72,130.7,44.7014705]
[1743609619082,19.07613357,130.71,130.7,44.7014705]
[1743609620060,18.57613357,130.71,130.7,44.7014705]
[1743609620263,18.433972,130.71,130.7,44.7014705]
[1743609620464,69.86820258,130.71,130.7,44.7014705]
[1743609620785,31.56893357,130.71,130.7,44.7014705]
[1743609621096,20.6433,130.71,130.7,44.7014705]
[1743609621593,72.21969215,130.71,130.7,44.7014705]
[1743609621886,20.6433,130.71,130.7,44.7014705]
[1743609622268,71.93536901,130.71,130.7,44.7014705]
[1743609622464,20.6433,130.71,130.66,37.84]
[1743609622688,20.6433,130.71,130.67,286.36]
[1743609622869,7.6516,130.69,130.67,286.36]
[1743609624411,71.93586901,130.71,130.67,286.36]
[1743609624609,91.06216901,130.71,130.67,286.36]
[1743609624811,18.64964886,130.67,130.65,286.36]
[1743609625016,0.28432314,130.64,130.62,286.36]
[1743609625239,18.933972,130.62,130.6,286.36]
[1743609625418,69.94171787,130.61,130.6,286.36]
[1743609625579,70.36820258,130.61,130.59,11.84]
[1743609625786,70.22604101,130.6,130.58,286.34]
[1743609625996,51.29206901,130.59,130.56,286.34]
[1743609626319,70.22604101,130.57,130.49,0.063]
[1743609626616,51.29206901,130.5,130.49,0.063]
[1743609626916,26.31244886,130.5,130.49,0.0001]
[1743609627085,56.29686901,130.55,130.49,0.0001]
[1743609627086,19.1509,130.55,130.49,0.0001]
[1743609627289,7.6599,130.55,130.49,0.0001]
[1743609627909,7.6599,130.55,130.49,26.0001]
[1743609628217,13.3143,130.57,130.49,26.0001]
[1743609628411,7.658,130.59,130.51,26.0]
[1743609628589,58.94836901,130.61,130.52,26.0]
[1743609628794,18.79181043,130.57,130.53,11.84]
[1743609628984,26.8075,130.56,130.53,11.84]
[1743609629189,70.22604101,130.55,130.52,11.84]
[1743609629404,18.933972,130.55,130.52,11.84]
[1743609629595,7.6593,130.56,130.52,11.84]
[1743609630000,58.95136901,130.56,130.52,11.84]
[1743609630286,7.6593,130.56,130.52,11.84]
[1743609630486,17.2785,130.62,130.55,26.0]
[1743609630817,18.79181043,130.61,130.55,26.0]
[1743609630988,19.8764,130.62,130.57,26.0]
[1743609631190,19.8764,130.62,130.55,26.0]
[1743609631191,51.29206901,130.61,130.56,26.0]
[1743609631729,7.6534,130.66,130.55,26.0]
[1743609631931,63.96566901,130.67,130.58,0.14216157]
[1743609632228,51.29206901,130.71,130.62,26.0]
[1743609632395,51.29206901,130.69,130.62,26.0]
[1743609632824,51.29206901,130.69,130.66,26.0]
[1743609633028,26.30074886,130.7,130.68,26.0]
[1743609633207,26.7719,130.74,130.68,26.0]
[1743609633408,51.29206901,130.72,130.68,26.0]
[1743609634134,18.64964886,130.71,130.68,26.0]
[1743609634328,69.94171787,130.71,130.68,26.0]
[1743609634522,51.57639215,130.7,130.68,26.0]
[1743609634725,7.6487,130.74,130.68,26.0]
[1743609634939,7.6474,130.77,130.72,26.0]
[1743609635235,13.2801,130.8,130.76,26.0]
[1743609635236,7.6459,130.79,130.76,26.0]
[1743609635536,7.6459,130.79,130.64,20.0]
[1743609635537,0.5,130.76,130.7,286.42]
[1743609635701,0.5,130.76,130.58,44.82090912]
[1743609635702,51.29206901,130.71,130.66,298.26]
[1743609635910,51.29206901,130.7,130.66,298.26]
[1743609636142,51.57639215,130.71,130.66,298.26]
[1743609636633,51.29206901,130.73,130.66,298.26]
[1743609636841,18.64964886,130.75,130.69,26.0]
[1743609637020,7.6487,130.74,130.69,26.0]
[1743609637338,7.6487,130.74,130.66,298.26]
[1743609637548,7.6483,130.75,130.69,26.0]
[1743609637709,0.03,130.78,130.69,26.0]
[1743609638039,18.933972,130.75,130.69,26.0]
[1743609638206,0.28432314,130.73,130.69,26.0]
[1743609638409,0.28432314,130.73,130.66,298.26]
[1743609638410,0.14216157,130.71,130.66,298.26]
[1743609638607,18.933972,130.7,130.67,11.84]
[1743609638813,0.28432314,130.68,130.66,286.42]
[1743609639073,7.6528,130.67,130.66,286.42]
[1743609639743,78.02100258,130.67,130.66,286.42]
[1743609640035,0.14216157,130.65,130.54,298.22]
[1743609640206,51.29206901,130.62,130.55,11.84]
[1743609640405,18.933972,130.61,130.55,11.84]
[1743609640602,19.14964886,130.6,130.54,286.38]
[1743609640806,0.28432314,130.56,130.54,298.22]
[1743609641023,0.14216157,130.58,130.54,298.22]
[1743609641242,26.30734886,130.59,130.54,298.22]
[1743609641432,58.94566901,130.66,130.54,325.0313]
[1743609641610,0.14216157,130.64,130.57,26.0]
[1743609641804,0.28432314,130.62,130.54,286.38]
[1743609642011,0.28432314,130.62,130.55,11.84]
[1743609642012,18.64964886,130.6,130.55,11.84]
[1743609642246,18.79181043,130.62,130.58,26.0]
[1743609642547,26.7872,130.66,130.58,26.0]
[1743609642548,18.933972,130.66,130.58,26.0]
[1743609642711,70.08387944,130.66,130.58,26.0]
[1743609642914,0.14216157,130.65,130.58,26.0]
[1743609643330,18.79181043,130.64,130.58,26.0]
[1743609643539,0.28432314,130.65,130.58,26.0]
[1743609643738,18.64964886,130.67,130.59,26.0]
[1743609643915,0.14216157,130.73,130.59,26.0]
[1743609644241,12.3474,130.74,130.64,26.0]
[1743609644415,12.3474,130.74,130.68,26.0]
[1743609644615,63.63946901,130.74,130.68,26.0]
[1743609645130,71.28846901,130.74,130.68,26.0]
[1743609645344,51.29206901,130.72,130.68,26.0]
[1743609645514,18.64964886,130.7,130.65,286.42]
[1743609645718,18.64964886,130.7,130.66,11.84]
[1743609645916,51.29206901,130.7,130.66,11.84]